[Event "Mitropa Cup Open 2024"]
[Site "Apolda"]
[Date "2024.02.17"]
[Round "3.1"]
[White "Bluebaum, Matthias"]
[Black "Georgiadis, Nico"]
[Result "1-0"]
[ECO "E11"]
[WhiteElo "2655"]
[BlackElo "2547"]
[Annotator "TA"]
[PlyCount "109"]
[EventDate "2024.02.15"]
[EventType "team-tourn"]
[EventCountry "GER"]
[SourceTitle "playchess.com"]
[Source "ChessBase"]
[SourceQuality "1"]
[WhiteTeam "Germany"]
[BlackTeam "Switzerland"]
[WhiteTeamCountry "GER"]
[BlackTeamCountry "SUI"]
[TimeControl "40/5400+30:1800+30"]

{[%evp 35,109,127,112,108,110,114,105,102,105,111,112,108,107,35,114,119,240,244,300,289,285,254,276,266,266,274,361,356,375,361,366,374,368,373,366,365,345,349,371,371,472,429,511,182,198,206,214,189,170,137,738,913,987,918,905,905,828,710,794,785,29963,1154,1154,980,785,0,693,537,29965,29967,29964,29967,29967,29968,7890,7022]} 1. d4 {[%emt 0:00:04]} Nf6 {[%emt 0:00:08]} 2. c4 {[%emt 0:00:04]} e6 {[%emt 0:00:09]} 3. Nf3 {[%emt 0:00:15]} d5 {[%emt 0:00:08]} 4. g3 {[%emt 0:00:21]} Bb4+ {[%emt 0:00:55]} 5. Bd2 {[%emt 0:00:05]} Be7 {[%emt 0:00:08]} 6. Bg2 {[%emt 0:00:07]} O-O {[%emt 0:00:07]} 7. Qc2 {[%emt 0:00:05] E11: Bogo-Indian.} c6 {[%emt 0:02:28]} 8. h4 {[%emt 0:01:38]} Nbd7 {[%emt 0:08:30]} 9. Nc3 {[%emt 0:00:18]} dxc4 {[%emt 0:10:01]} 10. Rd1 {[%emt 0:00:12]} Nd5 {[%emt 0:09:47]} 11. Ne4 {[%emt 0:09:03]} c5 $146 {[%emt 0:18:17]} ({Predecessor:} 11... f5 12. Neg5 N7b6 13. O-O h6 14. Nh3 a5 15. Ne5 Bf6 16. Nxc4 Nxc4 17. Qxc4 Qb6 {½-½ Sivuk,V (2589)-Kozak,A (2504) Spilimbergo op 19th 2021 (3)}) 12. Neg5 {[%emt 0:07:48]} N5f6 {[%emt 0:05:48]} 13. Bc3 {[%emt 0:05:59]} Qc7 {[%emt 0:07:58]} 14. dxc5 {[%emt 0:01:11]} Re8 {[%emt 0:05:14]} 15. Nxf7 {[%emt 0:10:58]} Kxf7 {[%emt 0:00:37]} 16. Ng5+ {[%emt 0:00:07]} Kg8 {[%emt 0:00:05]} 17. Nxe6 {[%emt 0:00:55]} Qb8 {[%emt 0:00:13] [#]} 18. Ng5 {[%emt 0:05:13]} ({White must play} 18. Rxd7 $1 $18 Bxd7 19. Ng5) 18... Nf8 $16 {[%emt 0:04:42]} 19. Bd4 {[%emt 0:05:38]} Be6 {[%emt 0:11:04] [#]} 20. Nxe6 $1 {[%emt 0:00:35]} Nxe6 {[%emt 0:00:05]} 21. Qxc4 {[%emt 0:00:03]} Qc8 {[%emt 0:02:14]} 22. Bh3 {[%emt 0:04:06]} Bf8 {[%emt 0:00:21]} 23. Bxf6 {[%emt 0:03:24]} gxf6 {[%emt 0:00:05]} 24. O-O {[%emt 0:00:23]} (24. b4 $16) 24... Kh8 {[%emt 0:03:24]} ({Black should try} 24... a5 $1 $14) 25. b4 $16 {[%emt 0:02:10]} b5 {[%emt 0:04:22]} (25... a5 $16 {was necessary.}) 26. Qxb5 $18 {[%emt 0:09:33]} Rb8 {[%emt 0:00:15]} 27. Qc4 {[%emt 0:00:47]} Qc6 {[%emt 0:00:05]} 28. Rd3 {[%emt 0:02:28]} a5 {[%emt 0:01:44]} 29. a3 {[%emt 0:00:14]} (29. bxa5 Nxc5 30. Rd4 Qa6 $14) 29... axb4 {[%emt 0:01:06]} 30. axb4 {[%emt 0:00:02]} Ng7 {[%emt 0:04:32]} 31. Bd7 {[%emt 0:02:13]} Re4 {[%emt 0:00:04]} 32. Rd4 {[%emt 0:03:11]} Rxd4 {[%emt 0:00:10]} 33. Qxd4 {[%emt 0:00:01]} Qc7 {[%emt 0:00:37]} 34. Rd1 {[%emt 0:01:21]} Be7 {[%emt 0:00:43]} 35. Qe4 {[%emt 0:01:24]} Qe5 {[%emt 0:00:17]} 36. Qc4 {[%emt 0:03:18]} f5 {[%emt 0:00:28]} 37. Rd5 {[%emt 0:02:05]} Qb2 {[%emt 0:00:52]} 38. b5 {[%emt 0:00:28]} (38. Bxf5 Nxf5 39. Qe4 (39. Rxf5 $2 Qb1+ 40. Kg2 Qxf5 $19) 39... Rxb4 40. Qxf5 Qb1+ 41. Kg2 Qxf5 42. Rxf5 Rb5 $17) 38... Ra8 {[%emt 0:00:35]} 39. Rd1 $2 {[%emt 0:01:49]} (39. Bxf5 Nxf5 40. Qe4 (40. Rxf5 $2 {too greedy.} Qb1+ 41. Kg2 Qxf5 $19) 40... Nxg3 41. fxg3 (41. Qxe7 Qa1+ 42. Kh2 Qh1+ 43. Kxg3 Qxd5 $11) 41... Qc1+ 42. Kg2 Rf8 $14) (39. Kh2) 39... Ra1 $18 {[%emt 0:00:47]} 40. Rxa1 {[%emt 0:00:07]} Qxa1+ {[%emt 0:00:03]} 41. Kg2 {[%emt 0:30:06]} Qe5 {[%emt 0:31:08]} 42. c6 {[%emt 0:03:43]} Bd8 $2 {[%emt 0:00:00][%mdl 8192]} (42... Bc5 $16 43. h5 h6) 43. Qf7 $18 {[%emt 0:00:00]} Qc5 {[%emt 0:00:00]} 44. h5 {[%emt 0:00:00]} Bb6 {[%emt 0:00:00]} 45. e3 {[%emt 0:00:00]} h6 {[%emt 0:00:00]} 46. Be6 {[%emt 0:00:00]} Nxe6 {[%emt 0:00:00]} 47. Qxe6 {[%emt 0:00:00]} Qxb5 {[%emt 0:00:00]} 48. Qxh6+ {[%emt 0:00:00]} (48. Qc8+ $142 Kg7 49. Qb7+ Kf6 50. c7 Bxc7 51. Qxb5 Ke6 52. Qe8+ Kd5 53. Qd7+ Bd6 54. f4 (54. Qxf5+ Kc6 55. Qe6 Kc5 56. e4 Bc7 57. Qxh6 Be5 58. Qe6 Bg7 59. Qe7+ Kc4)) 48... Kg8 $18 {[%emt 0:00:00]} 49. Qg6+ {[%emt 0:00:00]} Kh8 {[%emt 0:00:00]} 50. Qh6+ {[%emt 0:00:00]} Kg8 {[%emt 0:00:00]} 51. Qe6+ {[%emt 0:00:00]} Kh7 {[%emt 0:00:00]} 52. c7 {[%emt 0:00:00]} Bxc7 {[%emt 0:00:00]} 53. Qf7+ {[%emt 0:00:00]} Kh8 {[%emt 0:00:00]} 54. Qxc7 {[%emt 0:00:00]} Qd5+ {[%emt 0:00:00]} 55. Kh2 {[%emt 0:00:00]} 1-0

[Event "Mitropa Cup Open 2024"]
[Site "Apolda"]
[Date "2024.02.17"]
[Round "3.2"]
[White "Bogner, Sebastian"]
[Black "Svane, Rasmus"]
[Result "1/2-1/2"]
[ECO "D10"]
[WhiteElo "2538"]
[BlackElo "2637"]
[Annotator "TA"]
[PlyCount "55"]
[EventDate "2024.02.15"]
[EventType "team-tourn"]
[EventCountry "GER"]
[SourceTitle "playchess.com"]
[Source "ChessBase"]
[SourceQuality "1"]
[WhiteTeam "Switzerland"]
[BlackTeam "Germany"]
[WhiteTeamCountry "SUI"]
[BlackTeamCountry "GER"]
[TimeControl "40/5400+30:1800+30"]

{[%evp 13,55,15,21,20,13,14,17,0,4,4,8,14,22,17,22,15,35,39,52,56,23,30,46,35,43,41,44,33,44,28,60,9,8,0,45,0,0,0,0,0,0,0,0,0]} 1. d4 {[%emt 0:00:03]} d5 {[%emt 0:00:10]} 2. c4 {[%emt 0:00:05]} c6 {[%emt 0:00:08]} 3. cxd5 {[%emt 0:02:08]} cxd5 {[%emt 0:00:09]} 4. Bf4 {[%emt 0:00:04]} Nc6 {[%emt 0:01:24]} 5. e3 {[%emt 0:00:05]} Nf6 {[%emt 0:00:10]} 6. Nc3 {[%emt 0:00:06]} Bf5 {[%emt 0:00:34]} 7. Qb3 {[%emt 0:02:21]} Na5 {[%emt 0:00:47]} 8. Qa4+ {[%emt 0:00:04]} Bd7 {[%emt 0:00:10]} 9. Qc2 {[%emt 0:00:12]} Rc8 {[%emt 0:02:18]} 10. Bd3 {[%emt 0:00:25]} e6 {[%emt 0:00:10]} 11. Nf3 {[%emt 0:00:43]} Bb4 {[%emt 0:03:19][%cal Of6e4]} 12. O-O {[%emt 0:01:48]} Nh5 {[%emt 0:00:39]} 13. Bg5 {[%emt 0:06:02]} (13. Bxh7 Nxf4 14. exf4 Nc4 $17) 13... f6 {[%emt 0:02:29] [#]} 14. Bxh7 $1 {[%emt 0:00:06]} fxg5 {[%emt 0:02:28]} (14... Bxc3 15. bxc3) 15. Qg6+ {[%emt 0:00:04]} Kf8 $1 {[%emt 0:00:26]} 16. Qxh5 {[%emt 0:00:05]} Be8 {[%emt 0:02:21]} 17. Qg4 {[%emt 0:00:02]} (17. Qxg5 $2 {is the wrong capture.} Rxh7 18. Ne2 Qxg5 19. Nxg5 Rh6 $19) (17. Qh3 Bxc3 (17... g4 18. Qxg4 Rxh7 19. Ng5 $17) 18. bxc3 Qe7 $19) 17... Rxh7 {[%emt 0:02:49]} 18. Nxg5 {[%emt 0:00:06]} (18. Qxe6 $2 {too greedy.} Bxc3 19. Rfc1 Rh6 20. Qf5+ Rf6 $19) 18... Rh6 {[%emt 0:01:13]} 19. Nxe6+ {[%emt 0:00:03]} Rxe6 {[%emt 0:00:08]} 20. Qxe6 {[%emt 0:00:04]} Bf7 {[%emt 0:22:58]} 21. Qf5 {[%emt 0:04:06]} Rc6 {[%emt 0:10:11]} 22. Rac1 {[%emt 0:04:14]} (22. Rfc1 $14) 22... Nc4 $11 {[%emt 0:06:20]} 23. Ne2 {[%emt 0:16:09]} Bd2 {[%emt 0:07:05]} (23... Rf6 $5 24. Qc2 Qe8 $11) 24. Rcd1 {[%emt 0:05:32]} (24. Ra1 $5) 24... Rf6 $1 {[%emt 0:06:19] The position is equal.} 25. Qg4 {[%emt 0:06:40] [#] Threatens to win with b3.} Rg6 {[%emt 0:02:03]} 26. Qf5 {[%emt 0:03:04]} Rf6 $1 {[%emt 0:01:05]} 27. Qg4 {[%emt 0:09:46] aiming for b3.} Rg6 {[%emt 0:00:07]} 28. Qf5 {[%emt 0:03:35] Weighted Error Value: White=0.10 (very precise) /Black=0.04 (flawless) .  Mistake:       	White=1     	---        Inaccurate:     	White=1     	Black=1      OK:         	White=9     	Black=12     Best:        	White=3     	Black=2      Strong:       	---       	Black=3} 1/2-1/2

[Event "Mitropa Cup Open 2024"]
[Site "Apolda"]
[Date "2024.02.17"]
[Round "3.3"]
[White "Donchenko, Alexander"]
[Black "Baenziger, Fabian"]
[Result "1-0"]
[ECO "C55"]
[WhiteElo "2643"]
[BlackElo "2414"]
[Annotator "TA"]
[PlyCount "71"]
[EventDate "2024.02.15"]
[EventType "team-tourn"]
[EventCountry "GER"]
[SourceTitle "playchess.com"]
[Source "ChessBase"]
[SourceQuality "1"]
[WhiteTeam "Germany"]
[BlackTeam "Switzerland"]
[WhiteTeamCountry "GER"]
[BlackTeamCountry "SUI"]
[TimeControl "40/5400+30:1800+30"]

{[%evp 18,71,6,18,19,10,7,0,28,26,39,8,22,0,0,0,0,0,72,69,74,45,174,163,214,237,238,212,204,179,176,166,190,179,184,175,193,193,193,193,200,190,201,182,180,198,278,273,276,262,376,362,580,606,596,547]} 1. e4 {[%emt 0:00:03]} e5 {[%emt 0:01:02]} 2. Nf3 {[%emt 0:00:07]} Nc6 {[%emt 0:00:06]} 3. Bb5 {[%emt 0:00:14]} a6 {[%emt 0:00:30]} 4. Ba4 {[%emt 0:00:07]} Nf6 {[%emt 0:00:41]} 5. O-O {[%emt 0:00:18]} Be7 {[%emt 0:00:47]} 6. d3 {[%emt 0:00:33][%cal Bd2d3,Bd3d4][%mdl 32]} b5 {[%emt 0:01:34]} 7. Bb3 {[%emt 0:00:07]} d6 {[%emt 0:00:11]} 8. c3 {[%emt 0:00:35]} O-O {[%emt 0:00:39]} 9. h3 {[%emt 0:01:01]} Na5 {[%emt 0:11:25]} 10. Bc2 {[%emt 0:00:33]} c5 {[%emt 0:00:09]} 11. d4 {[%emt 0:00:22]} Qc7 {[%emt 0:01:50]} 12. d5 {[%emt 0:00:51]} Nc4 {[%emt 0:01:13] The position is equal.} 13. b3 {[%emt 0:01:10]} Nb6 {[%emt 0:00:29]} 14. Be3 {[%emt 0:00:56]} Bd7 {[%emt 0:07:19]} 15. Nbd2 {[%emt 0:06:21]} c4 {[%emt 0:15:01]} 16. Qe2 {[%emt 0:10:07]} cxb3 {[%emt 0:14:53]} 17. axb3 {[%emt 0:00:51]} Rfb8 {[%emt 0:00:34]} (17... Qxc3 $11 {keeps the balance.} 18. Bxb6 Qxc2) 18. Rfc1 $16 {[%emt 0:03:32]} a5 {[%emt 0:00:51]} 19. Bd3 {[%emt 0:03:01]} Ne8 {[%emt 0:12:49] Black cannot hold the game after this.} ({Better is} 19... a4 $14) 20. Bxb5 $18 {[%emt 0:04:50]} f5 {[%emt 0:00:11]} (20... Bxb5 $142 21. Qxb5 Nd7) 21. Bxd7 {[%emt 0:06:14]} Qxd7 {[%emt 0:00:08]} 22. c4 {[%emt 0:00:17]} Bd8 {[%emt 0:02:53]} 23. exf5 {[%emt 0:07:53]} Qxf5 {[%emt 0:00:23]} 24. Ra3 {[%emt 0:00:20]} Nd7 {[%emt 0:00:59]} 25. Rca1 {[%emt 0:00:38]} Rb7 {[%emt 0:00:56]} 26. Nf1 {[%emt 0:01:23][%cal Bd2f1,Bf1g3,Bg3f5,Bf5d6][%mdl 32]} Rab8 {[%emt 0:00:50]} 27. Ng3 {[%emt 0:01:26]} Qg6 {[%emt 0:00:04]} 28. Nd2 {[%emt 0:01:15]} Nef6 {[%emt 0:00:32]} 29. Qf3 {[%emt 0:01:07] aiming for Nf5.} Bc7 {[%emt 0:01:13]} 30. Qf5 {[%emt 0:03:17]} Qxf5 {[%emt 0:02:09]} 31. Nxf5 {[%emt 0:00:03]} Re8 {[%emt 0:00:07] Inhibits Ne7+.} (31... Kf8 $142 32. Ng3 h5) 32. Rxa5 {[%emt 0:05:51]} Bxa5 {[%emt 0:00:24]} 33. Rxa5 {[%emt 0:00:07]} Reb8 {[%emt 0:00:30]} (33... Rbb8 {was worth a try.} 34. Kf1 (34. Nxd6 Ra8 $18) 34... Ra8) 34. Nxd6 {[%emt 0:00:54]} Rxb3 {[%emt 0:00:04] [#]} (34... Rc7 35. g4 h6) 35. Nxb3 {[%emt 0:00:14]} Rxb3 {[%emt 0:00:04]} 36. Ra8+ {[%emt 0:00:25] Weighted Error Value: White=0.08 (flawless) /Black=0.37.  Mistake:       	---       	Black=6      Inaccurate:     	White=2     	Black=1      OK:         	White=9     	Black=10     Best:        	White=1     	---} 1-0

[Event "Mitropa Cup Open 2024"]
[Site "Apolda"]
[Date "2024.02.17"]
[Round "3.4"]
[White "Fecker, Noah"]
[Black "Kollars, Dmitrij"]
[Result "0-1"]
[ECO "C26"]
[WhiteElo "2397"]
[BlackElo "2632"]
[Annotator "TA"]
[PlyCount "54"]
[EventDate "2024.02.15"]
[EventType "team-tourn"]
[EventCountry "GER"]
[SourceTitle "playchess.com"]
[Source "ChessBase"]
[SourceQuality "1"]
[WhiteTeam "Switzerland"]
[BlackTeam "Germany"]
[WhiteTeamCountry "SUI"]
[BlackTeamCountry "GER"]
[TimeControl "40/5400+30:1800+30"]

{[%evp 9,54,0,0,0,0,-54,8,11,22,18,34,6,10,8,29,54,44,20,48,33,37,24,45,23,39,19,23,-43,-21,-100,-109,-133,-140,-141,-131,-122,-53,-202,-194,-191,-190,-284,-277,-283,-279,-520,-504]} 1. e4 {[%emt 0:00:05]} e5 {[%emt 0:00:10]} 2. Nc3 {[%emt 0:00:18]} Nf6 {[%emt 0:00:29]} 3. d4 {[%emt 0:00:30]} exd4 {[%emt 0:00:16]} 4. Qxd4 {[%emt 0:00:10]} Nc6 {[%emt 0:00:09]} 5. Qd3 {[%emt 0:00:45]} Bc5 {[%emt 0:05:07]} 6. Bf4 {[%emt 0:01:07]} d6 {[%emt 0:03:03]} 7. O-O-O {[%emt 0:00:14]} (7. Qd2 $11) 7... O-O {[%emt 0:05:06]} ({Better is} 7... Bxf2 $15 8. h3 O-O) 8. f3 $11 {[%emt 0:20:10] The position is equal.} Be6 {[%emt 0:01:16]} 9. Qd2 {[%emt 0:11:11]} a6 {[%emt 0:12:18]} 10. h4 {[%emt 0:04:22][%cal Bh2h4,Bh4h5,Bh5h6][%mdl 32]} b5 {[%emt 0:03:28][%cal Bb7b5,Bb5b4][%mdl 32]} 11. h5 {[%emt 0:06:18] Threatening h6.} Nd7 {[%emt 0:02:44]} 12. h6 {[%emt 0:04:43] [#] aiming for hxg7.} g6 {[%emt 0:00:09]} 13. Nh3 {[%emt 0:07:53]} Nce5 {[%emt 0:09:19]} 14. Be3 {[%emt 0:08:30]} b4 {[%emt 0:04:56]} 15. Na4 {[%emt 0:04:50] Threatens to win with Nxc5.} Bxe3 {[%emt 0:11:24]} (15... Bxa2 $6 16. Nxc5 dxc5 17. f4 $16) 16. Qxe3 {[%emt 0:00:05]} a5 {[%emt 0:00:03][%cal Od8b8]} (16... Bxa2 $2 17. b3 $16) 17. Kb1 {[%emt 0:04:24]} Qe7 {[%emt 0:02:28]} 18. f4 {[%emt 0:03:01]} (18. b3 $11) 18... Ng4 $15 {[%emt 0:00:40][%csl LRe3,LRh6]} 19. Qg3 {[%emt 0:00:48] [#]} (19. Qd4 $11 {remains equal.} Ndf6 (19... Nxh6 20. Ng5 $16) 20. Ng5) 19... Ndf6 $1 $17 {[%emt 0:03:54]} 20. Ng5 {[%emt 0:03:10]} Bd7 {[%emt 0:03:01][%csl LRa4,LRe4]} 21. Be2 {[%emt 0:00:36]} Nh5 {[%emt 0:04:34]} (21... Bxa4 22. Bxg4 Nxg4 23. Qxg4 $11) 22. Qf3 {[%emt 0:10:08]} Nxh6 {[%emt 0:01:22]} (22... Rae8 $17 {[%cal Of7f6] Strongly threatening ...f6!} 23. b3 Nxh6 24. Rxh5 gxh5 25. Qxh5 f6) 23. Rxh5 {[%emt 0:00:16] Now White is beyond hope.} ({White should play} 23. Qf2 $1 $15) 23... gxh5 $19 {[%emt 0:00:51]} 24. Qxh5 {[%emt 0:00:03]} f6 $1 {[%emt 0:00:52]} 25. Bc4+ {[%emt 0:00:49]} (25. Nh3 {keeps fighting.}) 25... Kh8 {[%emt 0:01:28]} 26. Nf3 {[%emt 0:01:26]} Ng4 {[%emt 0:02:57][%cal Og4e3] ...Ne3! would now be deadly.} (26... Bxa4 27. Qxh6 Qg7 (27... Qxe4 $2 28. b3 $18) 28. Qh4 $17) (26... Qxe4 27. Bd5 Qg6 (27... Qxf4 28. Rd4 $17) 28. Qxg6 hxg6 29. Bxa8 Rxa8 30. Nc5 $19) 27. Nh4 $2 {[%emt 0:00:59]} (27. Re1 {is the only way for White.}) 27... Qe8 {[%emt 0:01:10] Weighted Error Value: White=0.44/Black=0.12 (very precise) .  Mistake:       	White=6     	Black=2      Inaccurate:     	White=1     	Black=1      OK:         	White=10    	Black=10     Best:        	---       	Black=2      Strong:       	---       	Black=2} ({Not} 27... Bxa4 28. Ng6+ (28. Qxg4 Bd7 $11) 28... Kg7 29. Rh1 (29. Nxe7 Rg8 $18) 29... Bxc2+ 30. Kc1 h6 31. Nxe7 Bxe4 32. Qxg4+ Kh8 33. Rxh6+ (33. f5 Bxf5 34. Nxf5 Rf7 35. Rxh6+ Rh7 36. Qg7#) 33... Bh7 34. Rxh7+ (34. Ng6+ Kg7 35. Nxf8+ Kxf8 36. Rxh7 d5 37. Qg7+ Ke8 38. Rh8#) 34... Kxh7 35. Qh5+ Kg7 36. Nf5#) (27... Qxe4 $2 28. Bd3 Be8 29. Qxg4 $18) 0-1

[Event "Mitropa Cup Open 2024"]
[Site "Apolda"]
[Date "2024.02.17"]
[Round "3.5"]
[White "Plenca, Jadranko"]
[Black "Krstulovic, Alex"]
[Result "1/2-1/2"]
[ECO "B11"]
[WhiteElo "2429"]
[BlackElo "2414"]
[Annotator "RC"]
[PlyCount "63"]
[EventDate "2024.02.15"]
[EventType "team-tourn"]
[EventCountry "GER"]
[SourceTitle "playchess.com"]
[Source "ChessBase"]
[SourceQuality "1"]
[WhiteTeam "Croatia"]
[BlackTeam "Hungary"]
[WhiteTeamCountry "CRO"]
[BlackTeamCountry "HUN"]
[TimeControl "40/5400+30:1800+30"]

1. e4 {[%emt 0:00:06]} c6 {[%emt 0:00:04]} 2. Nc3 {[%emt 0:00:49]} d5 {[%emt 0:00:06]} 3. Nf3 {[%emt 0:00:16]} dxe4 {[%emt 0:00:05]} 4. Nxe4 {[%emt 0:00:06]} Nf6 {[%emt 0:00:06]} 5. Qe2 {[%emt 0:00:08]} Na6 {[%emt 0:00:06]} 6. Nxf6+ {[%emt 0:04:24]} gxf6 {[%emt 0:00:11]} 7. c3 {[%emt 0:13:01]} Bg4 {[%emt 0:05:14]} 8. Qe4 {[%emt 0:06:34]} Qd7 {[%emt 0:10:35]} 9. d4 {[%emt 0:02:56]} Nc7 {[%emt 0:07:32]} 10. g3 {[%emt 0:11:52]} O-O-O {[%emt 0:04:47]} 11. Bg2 {[%emt 0:00:28]} Qe6 {[%emt 0:03:47]} 12. Qxe6+ {[%emt 0:01:29]} Bxe6 {[%emt 0:00:11]} 13. O-O {[%emt 0:01:02]} Bd5 {[%emt 0:01:25]} 14. b3 {[%emt 0:07:03]} Bg7 {[%emt 0:13:35]} 15. Re1 {[%emt 0:04:23]} e6 {[%emt 0:01:54]} 16. Bf4 {[%emt 0:02:07]} Rd7 {[%emt 0:09:11]} 17. Rac1 {[%emt 0:04:13]} Rhd8 {[%emt 0:02:31]} 18. c4 {[%emt 0:14:27]} Bxf3 {[%emt 0:01:26]} 19. Bxf3 {[%emt 0:00:04]} f5 {[%emt 0:10:23]} 20. d5 {[%emt 0:04:02]} exd5 {[%emt 0:01:08]} 21. Bxc7 {[%emt 0:13:28]} Rxc7 {[%emt 0:00:15]} 22. cxd5 {[%emt 0:00:05]} cxd5 {[%emt 0:04:38]} 23. Rxc7+ {[%emt 0:00:08]} Kxc7 {[%emt 0:00:03]} 24. Re7+ {[%emt 0:00:06]} Rd7 {[%emt 0:00:03]} 25. Rxd7+ {[%emt 0:00:05]} Kxd7 {[%emt 0:00:04]} 26. Bxd5 {[%emt 0:00:05]} b6 {[%emt 0:00:03]} 27. Bxf7 {[%emt 0:00:09]} f4 {[%emt 0:01:04]} 28. Kg2 {[%emt 0:02:34]} Ke7 {[%emt 0:01:12]} 29. Bg8 {[%emt 0:01:02]} h6 {[%emt 0:00:13]} 30. Kf3 {[%emt 0:01:10]} fxg3 {[%emt 0:00:46]} 31. hxg3 {[%emt 0:00:12]} Bd4 {[%emt 0:00:07]} 32. Ke4 {[%emt 0:07:56]} 1/2-1/2

[Event "Mitropa Cup Open 2024"]
[Site "Apolda"]
[Date "2024.02.17"]
[Round "3.6"]
[White "Juhasz, Agoston"]
[Black "Ivekovic, Bozidar"]
[Result "1/2-1/2"]
[ECO "C50"]
[WhiteElo "2410"]
[BlackElo "2399"]
[Annotator "RC"]
[PlyCount "62"]
[EventDate "2024.02.15"]
[EventType "team-tourn"]
[EventCountry "GER"]
[SourceTitle "playchess.com"]
[Source "ChessBase"]
[SourceQuality "1"]
[WhiteTeam "Hungary"]
[BlackTeam "Croatia"]
[WhiteTeamCountry "HUN"]
[BlackTeamCountry "CRO"]
[TimeControl "40/5400+30:1800+30"]

1. e4 {[%emt 0:00:05]} e5 {[%emt 0:00:12]} 2. Nf3 {[%emt 0:00:12]} Nc6 {[%emt 0:00:06]} 3. Bc4 {[%emt 0:00:44]} Nf6 {[%emt 0:00:10]} 4. d3 {[%emt 0:00:10]} Bc5 {[%emt 0:00:15]} 5. Nc3 {[%emt 0:03:23]} d6 {[%emt 0:09:02]} 6. Na4 {[%emt 0:01:15]} a6 {[%emt 0:07:28]} 7. Nxc5 {[%emt 0:03:32]} dxc5 {[%emt 0:00:04]} 8. a3 {[%emt 0:10:53]} Qd6 {[%emt 0:11:10]} 9. h3 {[%emt 0:04:12]} O-O {[%emt 0:02:28]} 10. O-O {[%emt 0:01:14]} b5 {[%emt 0:02:27]} 11. Ba2 {[%emt 0:03:35]} Be6 {[%emt 0:00:16]} 12. Bxe6 {[%emt 0:07:24]} fxe6 {[%emt 0:00:18]} 13. Bd2 {[%emt 0:11:40]} Nd7 {[%emt 0:08:56]} 14. a4 {[%emt 0:04:00]} Nb6 {[%emt 0:01:49]} 15. b3 {[%emt 0:02:41]} Nd4 {[%emt 0:05:25]} 16. Nxd4 {[%emt 0:02:02]} cxd4 {[%emt 0:00:06]} 17. axb5 {[%emt 0:15:55]} axb5 {[%emt 0:00:06]} 18. Rxa8 {[%emt 0:01:06]} Rxa8 {[%emt 0:00:47]} 19. f4 {[%emt 0:00:31]} exf4 {[%emt 0:07:31]} 20. Bxf4 {[%emt 0:00:36]} e5 {[%emt 0:00:05]} 21. Bg3 {[%emt 0:01:29]} Qe6 {[%emt 0:00:43]} 22. Rf5 {[%emt 0:04:54]} Nd7 {[%emt 0:00:06]} 23. Qg4 {[%emt 0:00:40]} Re8 {[%emt 0:11:57]} 24. h4 {[%emt 0:03:16]} g6 {[%emt 0:12:35]} 25. h5 {[%emt 0:01:03]} Kh8 {[%emt 0:01:08]} 26. hxg6 {[%emt 0:03:26]} hxg6 {[%emt 0:00:09]} 27. Qh4+ {[%emt 0:01:10]} Kg7 {[%emt 0:00:19]} 28. Qg5 {[%emt 0:00:22]} Qe7 {[%emt 0:09:19]} 29. Qg4 {[%emt 0:01:17]} Qe6 {[%emt 0:01:23]} 30. Qg5 {[%emt 0:01:20]} Qe7 {[%emt 0:00:05]} 31. Qg4 {[%emt 0:01:58]} Qe6 {[%emt 0:00:45]} 1/2-1/2